fUSD/lending_fUSD_20260406
["ID","MTS","AMOUNT","RATE_DAILY","PERIOD"]
[419930642,1775514655053,-151.0,0.00015854,2]
[419930643,1775514655063,-151.0,0.00015854,2]
[419930644,1775514655072,-151.0,0.00015854,2]
[419930645,1775514655082,-687.624948,0.00015854,2]
[419930646,1775514655091,-151.0,0.00015854,2]
[419930647,1775514655101,-280.584218,0.00015854,2]
[419930648,1775514655110,-151.0,0.00015854,2]
[419930649,1775514655120,-157.411895,0.00015854,2]
[419930650,1775514655128,-280.584218,0.00015854,2]
[419930651,1775514655544,-151.0,0.00015854,2]
[419930652,1775514655558,-766.93164,0.00015854,2]
[419930653,1775514655568,-157.411895,0.00015854,2]
[419930654,1775514655577,-151.0,0.00015854,2]
[419930655,1775514655587,-151.0,0.00015854,2]
[419930656,1775514655596,-766.93164,0.00015854,2]
[419930657,1775514655606,-157.411895,0.00015854,2]
[419930658,1775514655616,-186.094504,0.00015854,2]
[419930659,1775514655625,-151.0,0.00015854,2]
[419930660,1775514655635,-436.880734,0.00015854,2]
[419930661,1775514655644,-157.411895,0.00015854,2]
[419930662,1775514655654,-766.93164,0.00015854,2]
[419930663,1775514655664,-151.0,0.00015854,2]
[419930664,1775514655673,-436.880734,0.00015854,2]
[419930665,1775514655683,-151.0,0.00015854,2]
[419930666,1775514655692,-766.93164,0.00015854,2]
[419930667,1775514655702,-151.0,0.00015854,2]
[419930668,1775514655712,-436.880734,0.00015854,2]
[419930669,1775514655721,-151.0,0.00015854,2]
[419930670,1775514655732,-205.653364,0.00015854,2]
[419930671,1775514655742,-436.880734,0.00015854,2]
[419930672,1775514655752,-151.0,0.00015854,2]
[419930673,1775514655762,-224.223956,0.00015854,2]
[419930674,1775514655771,-151.0,0.00015854,2]
[419930675,1775514655781,-151.0,0.00015854,2]
[419930676,1775514655790,-151.0,0.00015854,2]
[419930677,1775514655800,-151.0,0.00015854,2]
[419930678,1775514655809,-151.0,0.00015854,2]
[419930679,1775514655819,-151.0,0.00015854,2]
[419930680,1775514655829,-729.469798,0.00015854,2]
[419930681,1775514655838,-151.0,0.00015854,2]
[419930682,1775514655847,-191.515392,0.00015854,2]
[419930683,1775514655857,-729.469798,0.00015854,2]
[419930684,1775514655866,-191.515392,0.00015854,2]
[419930685,1775514655875,-729.469798,0.00015854,2]
[419930686,1775514655885,-729.469798,0.00015854,2]
[419930687,1775514655895,-151.0,0.00015854,2]
[419930688,1775514655905,-416.609906,0.00015854,2]
[419930689,1775514655914,-387.488501,0.00015854,2]
[419930690,1775514655924,-416.609906,0.00015854,2]
[419930691,1775514655933,-387.488501,0.00015854,2]
[419930692,1775514655943,-151.0,0.00015854,2]
[419930693,1775514655952,-555.489885,0.00015854,2]
[419930694,1775514655962,-520.378138,0.00015854,2]
[419930695,1775514655972,-183.931815,0.00015854,2]
[419930696,1775514655981,-416.609906,0.00015854,2]
[419930697,1775514655991,-191.515392,0.00015854,2]
[419930698,1775514656001,-387.488501,0.00015854,2]
[419930699,1775514656011,-151.0,0.00015854,2]
[419930700,1775514656021,-151.0,0.00015854,2]
[419930701,1775514656030,-520.378138,0.00015854,2]
[419930702,1775514656040,-555.489885,0.00015854,2]
[419930703,1775514656049,-225.159939,0.00015854,2]
[419930704,1775514656059,-416.609906,0.00015854,2]
[419930705,1775514656069,-151.0,0.00015854,2]
[419930706,1775514656078,-387.488501,0.00015854,2]
[419930707,1775514656088,-191.515392,0.00015854,2]
[419930708,1775514656098,-520.378138,0.00015854,2]
[419930709,1775514656107,-151.0,0.00015854,2]
[419930710,1775514656117,-225.159939,0.00015854,2]
[419930711,1775514656126,-151.0,0.00015854,2]
[419930712,1775514656136,-520.378138,0.00015854,2]
[419930713,1775514656145,-158.965579,0.00015854,2]
[419930714,1775514656154,-225.159939,0.00015854,2]
[419930715,1775514656164,-151.0,0.00015854,2]
[419930716,1775514656174,-151.0,0.00015854,2]
[419930717,1775514656183,-225.159939,0.00015854,2]
[419930718,1775514656192,-151.0,0.00015854,2]
[419930719,1775514656202,-155.71659,0.00015854,2]
[419930720,1775514656212,-151.0,0.00015854,2]
[419930721,1775514656222,-155.71659,0.00015854,2]
[419930722,1775514656231,-155.71659,0.00015854,2]
[419930723,1775514656241,-155.71659,0.00015854,2]
[419930724,1775514656250,-555.489885,0.00015854,2]
[419930725,1775514656260,-151.0,0.00015854,2]
[419930726,1775514656270,-151.0,0.00015854,2]
[419930727,1775514656280,-555.489885,0.00015854,2]
[419930728,1775514656289,-151.0,0.00015854,2]
[419930729,1775514656299,-165.72124712,0.00015854,2]
[419930730,1775514656309,-151.0,0.00015854,2]
[419930731,1775514656318,-151.0,0.00015854,2]
[419930732,1775514656327,-151.0,0.00015854,2]
[419930733,1775514656337,-151.0,0.00015854,2]
[419930734,1775514656346,-151.0,0.00015854,2]
[419930735,1775514656356,-157.023332,0.00015854,2]
[419930736,1775514656365,-151.0,0.00015854,2]
[419930737,1775514656375,-151.0,0.00015854,2]
[419930738,1775514656384,-234.889848,0.00015854,2]
[419930739,1775514656394,-151.0,0.00015854,2]
[419930740,1775514656404,-234.889848,0.00015854,2]
[419930741,1775514656414,-234.889848,0.00015854,2]
[419930742,1775514656423,-234.889848,0.00015854,2]
[419930743,1775514656433,-151.0,0.00015854,2]
[419930744,1775514656443,-151.0,0.00015854,2]
[419930745,1775514656452,-151.0,0.00015854,2]
[419930746,1775514656462,-151.0,0.00015854,2]
[419930747,1775514656471,-500.0,0.00015854,2]
[419930748,1775514656481,-570.79309048,0.00015858,2]
[419930749,1775514656491,-1741.12,0.00015862,2]
[419930750,1775514656500,-962.31706574,0.00015863,2]
[419930751,1775514656510,-211.44,0.0001587,2]
[419930752,1775514656519,-500.0,0.00015871,2]
[419930753,1775514656529,-500.0,0.00015872,2]
[419930754,1775514656539,-500.0,0.00015872,2]
[419930755,1775514656550,-500.0,0.0001589,2]
[419930756,1775514656559,-500.0,0.0001589,2]
[419930757,1775514656569,-500.0,0.0001589,2]
[419930758,1775514656578,-500.0,0.0001589,2]
[419930759,1775514656588,-500.0,0.0001589,2]
[419930760,1775514656598,-500.0,0.0001589,2]
[419930761,1775514656607,-500.0,0.0001589,2]
[419930762,1775514656617,-500.0,0.0001589,2]
[419930763,1775514656626,-500.0,0.0001589,2]
[419930764,1775514656636,-500.0,0.0001589,2]
[419930765,1775514656647,-500.0,0.0001589,2]
[419930766,1775514656656,-500.0,0.0001589,2]
[419930767,1775514656666,-500.0,0.0001589,2]
[419930768,1775514656676,-500.0,0.0001589,2]
[419930769,1775514656685,-500.0,0.0001589,2]
[419930770,1775514656695,-500.0,0.0001589,2]
[419930771,1775514656704,-500.0,0.0001589,2]
[419930772,1775514656714,-500.0,0.0001589,2]
[419930773,1775514656723,-500.0,0.0001589,2]
[419930774,1775514656733,-500.0,0.0001589,2]
[419930775,1775514656743,-500.0,0.0001589,2]
[419930776,1775514656752,-500.0,0.0001589,2]
[419930777,1775514656762,-500.0,0.0001589,2]
[419930778,1775514656771,-500.0,0.0001589,2]
[419930779,1775514656781,-500.0,0.0001589,2]
[419930780,1775514656790,-500.0,0.0001589,2]
[419930781,1775514656800,-500.0,0.0001589,2]
[419930782,1775514656809,-500.0,0.0001589,2]
[419930783,1775514656819,-500.0,0.0001589,2]
[419930784,1775514656837,-520.24272845,0.0001589,2]
[419930785,1775514656850,-4000.0,0.00015895,2]
[419930786,1775514656859,-25000.0,0.000159,3]
[419930787,1775514656869,-21290.97079583,0.000159,3]
[419930788,1775514656879,-5800.0,0.000159,2]
[419930789,1775514656889,-348.55866469,0.000159,2]
[419930790,1775514656899,-300.0,0.000159,5]
[419930791,1775514656909,-2262.84289008,0.000159,2]
[419930792,1775514656920,-389.20297384,0.000159,2]
[419930793,1775514656930,-389.20297383,0.000159,2]
[419930794,1775514656940,-389.20297383,0.000159,2]
[419930795,1775514656950,-389.20297383,0.000159,2]
[419930796,1775514656959,-389.20297383,0.000159,2]
[419930797,1775514656970,-1908.7943807,0.000159,2]
[419930798,1775514656981,-389.20297383,0.000159,2]
[419930799,1775514656990,-4539.0,0.000159,5]
[419930800,1775514657000,-3830.0,0.000159,5]
[419930801,1775514657011,-2000.0,0.000159,2]
[419930802,1775514657021,-150.0,0.00015908,2]
[419930803,1775514657031,-150.0,0.00015913,2]
[419930804,1775514657040,-258.0,0.00015916,2]
[419930805,1775514657050,-350.0,0.00015937,4]
[419930806,1775514657059,-1000.0,0.00015938,2]
[419930807,1775514657069,-1000.0,0.00015945,2]
[419930808,1775514657079,-1000.0,0.00015946,2]
[419930809,1775514657089,-306.13150107,0.00015952,2]
[419930810,1775514657098,-500.0,0.00015953,2]
[419930811,1775514657108,-500.0,0.00015953,2]
[419930812,1775514657117,-500.0,0.00015953,2]
[419930813,1775514657126,-500.0,0.00015953,2]
[419930814,1775514657136,-469.05755082,0.00015953,2]
[419930815,1775514657146,-287.42148692,0.0001596,2]
[419930816,1775514657156,-1000.0,0.00015965,2]
[419930817,1775514657165,-1000.0,0.00015965,2]
[419930818,1775514657174,-1000.0,0.00015965,2]
[419930819,1775514657184,-1000.0,0.00015965,2]
[419930820,1775514657193,-1000.0,0.00015965,2]
[419930821,1775514657203,-345.45626765,0.0001597,2]
[419930822,1775514657214,-1481.23780761,0.00015972,2]
[419930823,1775514657223,-200.0,0.00015972,2]
[419930824,1775514657233,-799.54513345,0.00015972,2]
[419930825,1775514657242,-794.43482129,0.00015972,2]
[419930826,1775514657252,-187.78006525,0.00015972,2]
[419930827,1775514657261,-301.00069851,0.00015972,2]
[419930828,1775514657271,-286.46237648,0.00015973,2]
[419930829,1775514657282,-500.0,0.00015973,2]
[419930830,1775514657291,-166.5524378,0.00015973,2]
[419930831,1775514657301,-202.74253669,0.0001599,2]
[419930832,1775514657311,-151.0,0.00015997,2]
[419930833,1775514657320,-670.84839751,0.00015999,2]
[419930834,1775514657330,-666.0,0.00015999,2]
[419930835,1775514657339,-150.0,0.00015999,2]
[419930836,1775514657354,-1084.35002387,0.00015999,5]
[419930837,1775514657364,-1084.35002387,0.00015999,5]
[419930838,1775514657374,-1084.35002387,0.00015999,5]
[419930839,1775514657384,-1084.35002384,0.00015999,5]
[419930840,1775514657394,-1084.35002387,0.00015999,5]
[419930841,1775514657404,-1084.35002387,0.00015999,5]
[419930842,1775514657414,-500.0,0.00015999,2]
[419930843,1775514657423,-500.0,0.00015999,2]
[419930844,1775514657433,-496.6511046,0.00015999,2]
[419930845,1775514657443,-620.46209973,0.00015999,2]
[419930846,1775514657453,-502.24991065,0.00015999,2]
[419930847,1775514657462,-150.0,0.00015999,2]
[419930848,1775514657472,-150.0,0.00015999,2]
[419930849,1775514657482,-150.0,0.00015999,2]
[419930850,1775514657491,-150.0,0.00015999,2]
[419930851,1775514657501,-150.0,0.00015999,2]
[419930852,1775514657511,-150.0,0.00015999,2]
[419930853,1775514657521,-150.0,0.00015999,2]
[419930854,1775514657531,-150.0,0.00015999,2]
[419930855,1775514657540,-150.0,0.00015999,2]
[419930856,1775514657550,-150.0,0.00015999,2]
[419930857,1775514657560,-205.95195993,0.00015999,2]
[419930858,1775514657570,-462140.85975162,0.00016,2]
[419930859,1775514659722,-1098.0776914,0.00016,2]
[419930860,1775514660462,-110.23797238,0.00014095,2]
[419930861,1775514660483,-215.36613962,0.00014095,2]
[419930862,1775514660496,-838.63386038,0.00015371,2]
[419930863,1775514661319,-150.0,0.00013801,2]
[419930864,1775514661330,-272.17771,0.00013802,2]
[419930865,1775514661342,-1632.36613962,0.00015371,2]
[419930866,1775514661354,-169.314138,0.00015438,2]
[419930867,1775514661366,-389.20297383,0.000159,2]
[419930868,1775514661381,-96605.48643763,0.00016,2]
[419930869,1775514761706,500.0,9.9e-05,3]
[419930870,1775514764628,1000.0,0.0001,3]
[419930875,1775515074770,1084.35002387,9.713e-05,3]
[419930880,1775515448072,500.0,9.293e-05,3]
[419930884,1775515552481,-283.0,9.293e-05,2]
[419930885,1775515552505,-1763.11257618,9.293e-05,2]
[419930886,1775515625097,-283.0,9.292e-05,2]
[419930887,1775515625131,-300.0,9.292e-05,2]
[419930888,1775515625153,-250.0,9.293e-05,2]
[419930889,1775515625611,-150.0,9.293e-05,2]
[419930890,1775515625632,-1716.13722729,9.293e-05,2]
[419930891,1775515649427,-281.15945974,9.293e-05,2]
[419930892,1775515649456,-1391.88639182,9.293e-05,2]
[419930893,1775515682413,155.35,4.735e-05,2]
[419930894,1775515682463,155.35,5.051e-05,2]
[419930895,1775515682500,155.35,5.367e-05,2]
[419930896,1775515682544,155.35,5.682e-05,2]
[419930897,1775515682586,155.35,5.998e-05,2]
[419930898,1775515682629,155.35,6.314e-05,2]
[419930899,1775515682747,155.35,6.63e-05,2]
[419930900,1775515682945,155.35,6.945e-05,2]
[419930901,1775515683166,155.35,7.261e-05,2]
[419930902,1775515683363,155.35,7.577e-05,2]
[419930903,1775515683564,155.35,7.892e-05,2]
[419930904,1775515683791,155.35,8.208e-05,2]
[419930905,1775515747118,-155.35,8.524e-05,2]
[419930906,1775515747145,-155.35,8.839e-05,2]
[419930907,1775515747171,-155.35,9.155e-05,2]
[419930908,1775515747199,-300.0,9.292e-05,2]
[419930909,1775515747225,-10422.34434497,9.293e-05,2]
[419930910,1775515747251,-250.0,9.374e-05,2]
[419930911,1775515747276,-321.15,9.471e-05,2]
[419930912,1775515747304,-155.35,9.471e-05,2]
[419930913,1775515747329,-500.0,9.493e-05,2]
[419930914,1775515747354,-500.0,9.493e-05,2]
[419930915,1775515747380,-486.95555034,9.513e-05,2]
[419930916,1775515747409,-500.0,9.513e-05,2]
[419930917,1775515747438,-500.0,9.513e-05,2]
[419930918,1775515747468,-500.0,9.513e-05,2]
[419930919,1775515748465,-500.0,9.513e-05,2]
[419930920,1775515748561,-500.0,9.513e-05,2]
[419930921,1775515748586,-500.0,9.513e-05,2]
[419930922,1775515748612,-500.0,9.513e-05,2]
[419930923,1775515748636,-500.0,9.513e-05,2]
[419930924,1775515748661,-500.0,9.513e-05,2]
[419930925,1775515748686,-500.0,9.513e-05,2]
[419930926,1775515748711,-500.0,9.513e-05,2]
[419930927,1775515748738,-500.0,9.513e-05,2]
[419930928,1775515748765,-500.0,9.513e-05,2]
[419930929,1775515748790,-500.0,9.513e-05,2]
[419930930,1775515748814,-500.0,9.513e-05,2]
[419930931,1775515748839,-500.0,9.513e-05,2]
[419930932,1775515748865,-500.0,9.513e-05,2]
[419930933,1775515748889,-500.0,9.513e-05,2]
[419930934,1775515748914,-500.0,9.513e-05,2]
[419930935,1775515748939,-500.0,9.513e-05,2]
[419930936,1775515748964,-500.0,9.513e-05,2]
[419930937,1775515748990,-500.0,9.513e-05,2]
[419930938,1775515749014,-500.0,9.513e-05,2]
[419930939,1775515749039,-500.0,9.513e-05,2]
[419930940,1775515749064,-500.0,9.513e-05,2]
[419930941,1775515749089,-500.0,9.513e-05,2]
[419930942,1775515749120,-500.0,9.513e-05,2]
[419930943,1775515749146,-500.0,9.513e-05,2]
[419930944,1775515749172,-500.0,9.513e-05,2]
[419930945,1775515749200,-500.0,9.513e-05,2]
[419930946,1775515749225,-500.0,9.513e-05,2]
[419930947,1775515749251,-500.0,9.513e-05,2]
[419930948,1775515749278,-500.0,9.513e-05,2]
[419930949,1775515749304,-500.0,9.513e-05,2]
[419930950,1775515749330,-500.0,9.513e-05,2]
[419930951,1775515749356,-500.0,9.513e-05,2]
[419930952,1775515749381,-500.0,9.513e-05,2]
[419930953,1775515749407,-500.0,9.513e-05,2]
[419930954,1775515749433,-500.0,9.513e-05,2]
[419930955,1775515749458,-500.0,9.513e-05,2]
[419930956,1775515749483,-500.0,9.513e-05,2]
[419930957,1775515749509,-500.0,9.513e-05,2]
[419930958,1775515749534,-500.0,9.513e-05,2]
[419930959,1775515749560,-500.0,9.513e-05,2]
[419930960,1775515749586,-500.0,9.513e-05,2]
[419930961,1775515749614,-500.0,9.513e-05,2]
[419930962,1775515749639,-248.20391735,9.513e-05,2]
[419930963,1775515749666,-500.0,9.513e-05,2]
[419930964,1775515749693,-500.0,9.513e-05,2]
[419930965,1775515749720,-500.0,9.513e-05,2]
[419930966,1775515749747,-500.0,9.513e-05,2]
[419930967,1775515749773,-500.0,9.513e-05,2]
[419930968,1775515749799,-500.0,9.513e-05,2]
[419930969,1775515749826,-500.0,9.513e-05,2]
[419930970,1775515749855,-500.0,9.513e-05,2]
[419930971,1775515749880,-1007.39821556,9.513e-05,2]
[419930972,1775515749908,-1007.39821556,9.513e-05,2]
[419930973,1775515749935,-1007.39821556,9.513e-05,2]
[419930974,1775515749962,-1007.39821556,9.513e-05,2]
[419930975,1775515749988,-1007.39821556,9.513e-05,2]
[419930976,1775515750016,-1007.39821556,9.513e-05,2]
[419930977,1775515750041,-1007.39821556,9.513e-05,2]
[419930978,1775515750067,-1007.39821556,9.513e-05,2]
[419930979,1775515750093,-1007.39821556,9.513e-05,2]
[419930980,1775515750119,-1007.39821556,9.513e-05,2]
[419930981,1775515750146,-1007.39821556,9.513e-05,2]
[419930982,1775515750172,-1007.39821556,9.513e-05,2]
[419930983,1775515750199,-1007.39821556,9.513e-05,2]
[419930984,1775515750225,-1007.39821556,9.513e-05,2]
[419930985,1775515750250,-1007.39821556,9.513e-05,2]
[419930986,1775515750276,-1007.39821556,9.513e-05,2]
[419930987,1775515750302,-1007.39821556,9.513e-05,2]
[419930988,1775515750328,-1007.39821556,9.513e-05,2]
[419930989,1775515750354,-1007.39821556,9.513e-05,2]
[419930990,1775515750380,-1007.39821556,9.513e-05,2]
[419930991,1775515750407,-1007.39821556,9.513e-05,2]
[419930992,1775515750432,-1007.39821556,9.513e-05,2]
[419930993,1775515750458,-1007.39821556,9.513e-05,2]
[419930994,1775515750483,-1007.39821556,9.513e-05,2]
[419930995,1775515750508,-1007.39821556,9.513e-05,2]
[419930996,1775515750535,-1007.39821556,9.513e-05,2]
[419930997,1775515750561,-1007.39821556,9.513e-05,2]
[419930998,1775515750587,-1007.39821556,9.513e-05,2]
[419930999,1775515750613,-1007.39821556,9.513e-05,2]
[419931000,1775515750640,-1007.39821556,9.513e-05,2]
[419931001,1775515750665,-1007.39821556,9.513e-05,2]
[419931002,1775515750692,-1007.39821556,9.513e-05,2]
[419931003,1775515750719,-1007.39821556,9.513e-05,2]
[419931004,1775515750740,-1824.4793,9.514e-05,2]
[419931005,1775515750773,-28221.7029493,9.514e-05,2]
[419931006,1775515751378,-500.0,9.493e-05,2]
[419931007,1775515751401,-328.26797818,9.514e-05,2]
[419931008,1775515756116,-4142.36427252,9.514e-05,2]
[419931009,1775515756140,-32115.5668567,9.514e-05,2]
[419931010,1775515770105,-30569.03612,9.514e-05,2]
[419931011,1775515771130,-1598.88481126,9.514e-05,2]
[419931015,1775515831880,-500.0,9.493e-05,2]
[419931016,1775515831890,-500.0,9.493e-05,2]
[419931017,1775515831899,-1200.0,9.513e-05,2]
[419931018,1775515831908,-2565.81005708,9.513e-05,2]
[419931019,1775515831918,-4310.90487752,9.513e-05,2]
[419931020,1775515831929,-1309.1028729,9.513e-05,2]
[419931021,1775515831940,-2836.16146379,9.513e-05,2]
[419931022,1775515831949,-14771.25367469,9.514e-05,2]
[419931023,1775515831960,-626.74843471,9.514e-05,2]
[419931024,1775515832039,-8981.47282175,9.514e-05,2]
[419931054,1775515838035,-469.63953211,9.514e-05,2]
[419931055,1775515838139,-542.18835,9.514e-05,2]
[419931056,1775515838246,-2112.95628529,9.514e-05,2]
[419931057,1775515838258,-636.20225474,9.514e-05,2]
[419931058,1775515838269,-4266.75166167,9.514e-05,2]
[419931059,1775515838280,-751.30470147,9.514e-05,2]
[419931060,1775515838291,-1687.88980061,9.514e-05,2]
[419931061,1775515838302,-1953.91659276,9.514e-05,2]
[419931072,1775515840298,-921435.16950224,9.514e-05,2]
[419931073,1775515840308,-3754.4119,9.514e-05,2]
[419931074,1775515840317,-98674.7795,9.514e-05,2]
[419931075,1775515840327,-1000.0,9.514e-05,2]
[419931076,1775515840336,-1002.93988119,9.514e-05,2]
[419931077,1775515840345,-288.28007871,9.514e-05,2]
[419931078,1775515840355,-1800.42,9.589e-05,2]
[419931079,1775515840364,-2500.0,9.613e-05,2]
[419931080,1775515840373,-500.68172956,9.693e-05,2]
[419931081,1775515840382,-500.0,9.693e-05,2]
[419931082,1775515840391,-151.0,9.711e-05,2]
[419931083,1775515840400,-9999.99,9.713e-05,2]
[419931084,1775515840409,-150.99,9.713e-05,2]
[419931085,1775515840418,-999.99,9.713e-05,2]
[419931086,1775515840427,-299.99,9.713e-05,2]
[419931087,1775515840437,-150.99,9.713e-05,2]
[419931088,1775515840446,-70629.68,9.713e-05,2]
[419931089,1775515840456,-1005.3,9.713e-05,2]
[419931090,1775515840465,-477.7455152,9.798e-05,2]
[419931091,1775515840474,-1000.0,9.815e-05,2]
[419931092,1775515840484,-1600.0,9.821e-05,2]
[419931093,1775515840492,-5135.82920053,9.961e-05,2]
[419931094,1775515840502,-1005.3,9.987e-05,2]
[419931095,1775515840511,-321.15,9.997e-05,2]
[419931096,1775515840520,-297.8784013,0.0001,2]
[419931097,1775515840530,-196.06,0.0001,2]
[419931098,1775515840539,-348.5586647,0.0001,2]
[419931099,1775515840549,-1928.0,0.0001,2]
[419931100,1775515840559,-500.0,0.0001,2]
[419931101,1775515840568,-500.0,0.0001,2]
[419931102,1775515840578,-500.0,0.0001,2]
[419931103,1775515840587,-500.0,0.0001,2]
[419931104,1775515840597,-500.0,0.0001,2]
[419931105,1775515840609,-500.0,0.0001,2]
[419931106,1775515840618,-500.0,0.0001,2]
[419931107,1775515840628,-500.0,0.0001,2]
[419931108,1775515840637,-200.0,0.0001,2]
[419931109,1775515840646,-500.0,0.0001,2]
[419931110,1775515840656,-500.0,0.0001,2]
[419931111,1775515840666,-500.0,0.0001,2]
[419931112,1775515840675,-500.0,0.0001,2]
[419931113,1775515840685,-151.0,0.0001,2]
[419931114,1775515840695,-151.0,0.0001,2]
[419931115,1775515840704,-151.0,0.0001,2]
[419931116,1775515840714,-151.0,0.0001,2]
[419931117,1775515840724,-151.0,0.0001,2]
[419931118,1775515840733,-151.0,0.0001,2]
[419931119,1775515840743,-151.0,0.0001,2]
[419931120,1775515840752,-151.0,0.0001,2]
[419931121,1775515840762,-151.0,0.0001,2]
[419931122,1775515840771,-151.0,0.0001,2]
[419931123,1775515840781,-151.0,0.0001,2]
[419931124,1775515840790,-151.0,0.0001,2]
[419931125,1775515840799,-151.0,0.0001,2]
[419931126,1775515840809,-500.0,0.0001,2]
[419931127,1775515840818,-151.0,0.0001,2]
[419931128,1775515840828,-151.0,0.0001,2]
[419931129,1775515840837,-500.0,0.0001,2]
[419931130,1775515840846,-151.0,0.0001,2]
[419931131,1775515840856,-151.0,0.0001,2]
[419931132,1775515840866,-500.0,0.0001,2]
[419931133,1775515840876,-151.0,0.0001,2]
[419931134,1775515840885,-151.0,0.0001,2]
[419931135,1775515840895,-500.0,0.0001,2]
[419931136,1775515840904,-151.0,0.0001,2]
[419931137,1775515840914,-151.0,0.0001,2]
[419931138,1775515840923,-151.0,0.0001,2]
[419931139,1775515840932,-500.0,0.0001,2]
[419931140,1775515840941,-151.0,0.0001,2]
[419931141,1775515840951,-151.0,0.0001,2]
[419931142,1775515840960,-500.0,0.0001,2]
[419931143,1775515840970,-151.0,0.0001,2]
[419931144,1775515840979,-151.0,0.0001,2]
[419931145,1775515840988,-500.0,0.0001,2]
[419931146,1775515840998,-151.0,0.0001,2]
[419931147,1775515841007,-151.0,0.0001,2]
[419931148,1775515841017,-500.0,0.0001,2]
[419931149,1775515841026,-151.0,0.0001,2]
[419931150,1775515841036,-500.0,0.0001,2]
[419931151,1775515841045,-151.0,0.0001,2]
[419931152,1775515841054,-500.0,0.0001,2]
[419931153,1775515841064,-151.0,0.0001,2]
[419931154,1775515841073,-500.0,0.0001,2]
[419931155,1775515841083,-151.0,0.0001,2]
[419931156,1775515841092,-500.0,0.0001,2]
[419931157,1775515841101,-151.0,0.0001,2]
[419931158,1775515841110,-1337.30371513,0.0001,2]
[419931159,1775515841120,-1000.0,0.00010041,2]
[419931160,1775515841129,-1000.0,0.00010041,2]
[419931161,1775515841138,-1000.0,0.00010041,2]
[419931163,1775515841148,-1109.27382076,0.00010041,2]
[419931164,1775515841158,-1000.0,0.00010041,2]
[419931165,1775515841167,-1635.0,0.00010142,2]
[419931166,1775515841176,-741.0,0.00010162,2]
[419931167,1775515841186,-1802.0,0.00010183,2]
[419931168,1775515841195,-250.0,0.00010221,2]
[419931169,1775515841204,-250.0,0.00010221,2]
[419931170,1775515841213,-281.0,0.00010222,2]
[419931171,1775515841222,-559.19665776,0.00010241,2]
[419931172,1775515841231,-489.86651367,0.0001025,2]
[419931173,1775515841240,-1005.3,0.00010261,2]
[419931174,1775515841250,-5534.0,0.000103,3]
[419931175,1775515841259,-1012.0,0.00010397,2]
[419931176,1775515841269,-1029.0,0.00010418,2]
[419931177,1775515841279,-469.0,0.0001045,2]
[419931178,1775515841289,-202.74253669,0.00010461,2]
[419931179,1775515841298,-1680.0,0.00010464,2]
[419931180,1775515841307,-250.0,0.00010464,2]
[419931181,1775515841316,-1882.0,0.00010471,2]
[419931182,1775515841326,-903.0,0.00010492,2]
[419931183,1775515841335,-150.0,0.000105,2]
[419931184,1775515841344,-5534.0,0.000105,5]
[419931185,1775515841354,-321.15,0.00010523,2]
[419931186,1775515841363,-1005.3,0.00010535,2]
[419931187,1775515841372,-200.0,0.00010548,2]
[419931188,1775515841382,-1386.78395259,0.00010548,2]
[419931189,1775515841391,-1500.0,0.00010588,2]
[419931190,1775515841400,-1500.0,0.00010588,2]
[419931191,1775515841409,-1500.0,0.00010588,2]
[419931192,1775515841419,-1500.0,0.00010588,2]
[419931193,1775515841429,-1005.3,0.00010809,2]
[419931194,1775515841439,-500.0,0.00010959,2]
[419931195,1775515841448,-150.0,0.00010959,2]